Cogmind - Beta 13 *** ADVENTURER MODE // 2024.04.19 @ 23:44:31 Player: SlyFyer Result: Destroyed by V6-9FU(R) with Subdweller Beam Cannon Performance ------------- Evolutions (0) 0 Regions Visited (2) 400 Robots Destroyed (23) 115 Value Destroyed (441) 441 Prototype IDs (0) 0 Alien Tech Used (0) 0 Bonus (0) 0 TOTAL SCORE: 956 Bonus ------- None Cogmind --------- Core Integrity 0/250 Matter 270/300 Energy 75/100 System Corruption 0% Temperature Cool (9) Movement Core (450) Ox8 Location -10/Subcaves Parts ------- > --- POWER (1) -------- (None) > --- PROPULSION (2) --- (None) > --- UTILITY (2) ------ Disposable Heat Sink Large Storage Unit > --- WEAPON (2) ------- Beam Cannon Mining Claw > --- INVENTORY (15) --- Heat Sink Disposable Heat Sink Disposable Heat Sink Small Battery (100) High-capacity Matter Pod (122) Improved Terrain Scanner Light Armor Plating High-powered Tractor Beam Field Recycling Unit (0) Beam Cannon Beam Cannon Grenade Launcher Peak State ------------ > --- POWER ------------ Light Ion Engine > --- PROPULSION ------- Wheel Wheel > --- UTILITY ---------- Disposable Heat Sink Large Storage Unit > --- WEAPON ----------- Beam Cannon Beam Cannon > --- INVENTORY -------- Ion Engine Heat Sink Disposable Heat Sink Disposable Heat Sink Small Battery High-capacity Matter Pod Improved Terrain Scanner Seismic Detector High-powered Tractor Beam Field Recycling Unit Beam Cannon Beam Cannon Grenade Launcher Mining Claw [Rating: 10] Favorites ----------- Power Light Ion Engine Engine Light Ion Engine Propulsion Wheel Wheel Wheel Utility Large Storage Unit Device Seismic Detector Storage Large Storage Unit Weapon Assault Rifle Energy Cannon Beam Cannon Ballistic Gun Assault Rifle Slashing Weapon Mining Claw Build | -11 -10 -10 ------- Run | Yrd Mat Sub Slots Evolved . | . . . Power . | . . . Propulsion . | . . . Utility . | . . . Weapon . | . . . Parts Attached 20 | 8 3 9 Power 2 | 1 . 1 Engine 2 | 1 . 1 Core . | . . . Reactor . | . . . Propulsion 5 | 3 2 . Treads . | . . . Leg . | . . . Wheel 5 | 3 2 . Hover . | . . . Flight . | . . . Utility 4 | 2 1 1 Device 2 | 1 . 1 Storage 2 | 1 1 . Processor . | . . . Hackware . | . . . Protection . | . . . Artifact . | . . . Weapon 9 | 2 . 7 Energy Gun . | . . . Energy Cannon 5 | . . 5 Ballistic Gun 2 | 2 . . Ballistic Cannon . | . . . Launcher . | . . . Special Weapon . | . . . Impact Weapon . | . . . Slashing Weapon 2 | . . 2 Piercing Weapon . | . . . Special Melee Weapon . | . . . Unidentified Prototypes . | . . . Parts Lost 9 | . 2 7 Power 2 | . . 2 Propulsion 4 | . 2 2 Utility . | . . . Weapon 3 | . . 3 Highest Loss Streak 5 | . 1 5 To Critical Strikes . | . . . Average Slot Usage (%) 97 | . 98 94 Engine 13 | . 14 13 Wheel 25 | . 26 23 Device 14 | . 14 14 Storage 14 | . 14 14 Energy Cannon 4 | . . 22 Ballistic Gun 22 | . 28 1 Naked Turns . | . . . Heaviest Build 32 | 13 28 32 Greatest Support 26 | 26 20 20 Greatest Overweight (x) 10 | . 2 10 Average Overweight (x) . | . . 1 Largest Inventory Capacity 15 | 8 15 15 Average Capacity 13 | 6 14 15 Most Carried 15 | 5 15 15 Average Carried 11 | 2 11 13 Final Capacity 15 | 8 15 15 Final Carried 15 | 3 15 12 Class Distribution -------------------- 100% | Mutant Dominant Class ---------------- Mutant | -10/Materials Mutant | -10/Subcaves Resources | -11 -10 -10 ----------- Run | Yrd Mat Sub Matter Collected 781 | 131 476 174 Remotely . | . . . Salvage Created 734 | 16 571 147 Parts 49 | 4 34 11 Haulers Intercepted 2 | . 2 . Recyclers Shooed . | . . . Parts Field Recycled . | . . . Retrieved Matter . | . . . Parts Self-Destructed 8 | . . 8 Prevented . | . . . Kills | -11 -10 -10 ------- Run | Yrd Mat Sub Combat Hostiles Destroyed 14 | . 11 3 Guns 11 | . 11 . Cannons 3 | . . 3 Classes Destroyed 10 | 1 7 2 Worker 1 | . 1 . Tunneler 1 | 1 . . Hauler 2 | . 2 . Recycler 1 | . 1 . Mechanic 1 | . 1 . Watcher 3 | . 3 . Swarmer 6 | . 6 . Grunt 6 | . 5 1 Sentry 1 | . . 1 Subdweller 1 | . . 1 Best Kill Streak 5 | 1 5 2 Combat Bots Only 3 | . 3 2 Max Kills in Single Turn 2 | 1 2 1 Gunslinging 1 | . 1 . Exploded . | . . . Melee . | . . . Uniques/NPCs Destroyed . | . . . Combat | -11 -10 -10 -------- Run | Yrd Mat Sub Hostile Shots Fired 110 | . 70 40 Missed 24 | . 12 12 Damage Taken 1074 | . 456 618 Core 272 | . 110 162 Absorbed by Shields . | . . . Ignored by Resistances 267 | . 135 132 Core Remaining (%) 100 | 100 . . Volleys Fired 72 | 1 51 20 Largest 2 | 2 2 2 Hottest 120 | 40 40 120 Shots Fired 144 | 2 102 40 Gun 112 | 2 102 8 Cannon 32 | . . 32 Launcher . | . . . Special . | . . . Kinetic 112 | 2 102 8 Thermal 32 | . . 32 Explosive . | . . . Electromagnetic . | . . . Robot Hit Streak 18 | 1 18 16 Robot Miss Streak 3 | . 3 2 Penetration Max . | . . . Secondary Targets 3 | . 3 . Max Gunslinging Chain 1 | . 1 . Shots Hit Robots 106 | 1 75 30 Core Hits 35 | 1 29 5 Critical Kills . | . . . Critical Parts Destroyed 1 | . 1 . Critical Strikes 1 | . 1 . Destroy 1 | . 1 . Melee Attacks 11 | . . 11 Impact . | . . . Slashing 11 | . . 11 Piercing . | . . . Sneak Attacks . | . . . Combat Hostiles . | . . . Follow-up Attacks . | . . . Damage Inflicted 1253 | 13 946 294 Guns 1035 | 13 938 84 Cannons 210 | . . 210 Explosions . | . . . Melee . | . . . Ramming 8 | . 8 . Kinetic 1035 | 13 938 84 Thermal 210 | . . 210 Explosive . | . . . Electromagnetic . | . . . Impact . | . . . Slashing . | . . . Piercing . | . . . Highest Corruption . | . . . Average Corruption . | . . . Corruption Purged . | . . . Corruption Blocked . | . . . Overload Shots . | . . . Overflow Damage . | . . . Projectiles . | . . . Explosions . | . . . Melee . | . . . Knockbacks 1 | . 1 . Impact 1 | . 1 . Kinetic . | . . . Secondary . | . . . Self-Inflicted Damage 4 | . 4 . Shots . | . . . Rammed 1 | . 1 . Targets Rammed 1 | . 1 . Kicked . | . . . Crushed . | . . . Highest Temperature 36 | . 26 36 Average Temperature 15 | . 15 14 Received Heat Transfer 372 | . 183 189 Siege Activations . | . . . Robots Corrupted . | . . . Combat Hostiles . | . . . Parts Fried . | . . . Impact Corruptions . | . . . Robots Melted . | . . . Combat Hostiles . | . . . Parts Melted 2 | . . 2 Heat Transferred 444 | . . 444 Parts Sabotaged . | . . . Parts Stolen . | . . . Parts Stripped . | . . . Power Chain Reactions . | . . . Alert | -11 -10 -10 ------- Run | Yrd Mat Sub Peak Influence 291 | 5 291 . Initial 2 | . 2 . Average 114 | 2 122 . Maximum Alert Level 1 | . 1 . Low Security (%) 86 | 100 85 . Level 1 13 | . 14 . Level 2 . | . . . Level 3 . | . . . Level 4 . | . . . Level 5 . | . . . High Security . | . . . Max Security . | . . . Squads Dispatched 1 | . 1 . Investigation 1 | . 1 . Extermination . | . . . Reinforcement . | . . . Assault . | . . . Garrison . | . . . Intercept . | . . . Searches Triggered . | . . . Construction Impeded . | . . . Haulers Reinforced . | . . . Active Scanning Responses . | . . . Cargo Convoy Interrupts . | . . . Stealth | -11 -10 -10 --------- Run | Yrd Mat Sub Distress Signals 1 | . 1 . Communications Jammed . | . . . Distress Signals . | . . . Times Spotted 21 | . 16 5 Peak Tracking Total 4 | . 4 3 Tactical Retreats 1 | . . 1 Traps | -11 -10 -10 ------- Run | Yrd Mat Sub Traps Triggered 7 | . 3 4 Indirectly . | . . . Trap Hack Attempts . | . . . Triggered . | . . . Disarmed . | . . . Reprogrammed . | . . . Reused . | . . . Traps Extracted . | . . . Installed . | . . . Triggered . | . . . Machines | -11 -10 -10 ---------- Run | Yrd Mat Sub Machines Disabled . | . . . Max in Single Turn . | . . . Machines Repaired . | . . . Machines Dismantled . | . . . Machines Sabotaged . | . . . Overloaded Fab Kills . | . . . Hacking | -11 -10 -10 --------- Run | Yrd Mat Sub Machines Accessed 3 | . 3 . Terminals 3 | . 3 . Fabricators . | . . . Repair Stations . | . . . Recycling Units . | . . . Scanalyzers . | . . . Garrison Access . | . . . Total Hacks 5 | . 5 . Successful 2 | . 2 . Failed 3 | . 3 . Catastrophic 1 | . 1 . Database Lockouts . | . . . Manual 5 | . 5 . Terminals 5 | . 5 . Fabricators . | . . . Repair Stations . | . . . Recycling Units . | . . . Scanalyzers . | . . . Garrison Access . | . . . Terminal Hacks 2 | . 2 . Part Schematic 2 | . 2 . Fabricator Hacks . | . . . Repair Station Hacks . | . . . Recycling Unit Hacks . | . . . Scanalyzer . | . . . Garrison Access Hacks . | . . . Unauthorized Hacks . | . . . Terminals . | . . . Fabricators . | . . . Repair Stations . | . . . Recycling Units . | . . . Scanalyzers . | . . . Garrison Access . | . . . Data Cores Recovered . | . . . Used . | . . . Hacking Detections 2 | . 2 . Full Trace Events . | . . . Feedback Events . | . . . Feedback Blocked . | . . . Robot Schematics Acquired . | . . . Robots Built . | . . . Authchips . | . . . Time . | . . . Total Robot Build Rating . | . . . Part Schematics Acquired 2 | . 2 . Parts Built . | . . . Authchips . | . . . Time . | . . . Total Part Build Rating . | . . . Parts Repaired . | . . . Time . | . . . Parts Recycled . | . . . Recycled Matter . | . . . Retrieved Matter . | . . . Retrieved Components . | . . . Parts Scanalyzed . | . . . Part Schematics Acquired . | . . . Parts Damaged . | . . . Bothacking | -11 -10 -10 ------------ Run | Yrd Mat Sub Used RIF Installer . | . . . Robots Hacked . | . . . Non-combat . | . . . Combat . | . . . Robot Hacks Applied . | . . . Relay Couplers Released . | . . . Fabnet Peak Effective % . | . . . Robots Rewired . | . . . Allies Hacked . | . . . Hacks Repelled . | . . . Allies | -11 -10 -10 -------- Run | Yrd Mat Sub Total Allies . | . . . Largest Group . | . . . Highest-Rated Group . | . . . Highest-Rated Ally . | . . . Total Orders . | . . . Ally Attacks . | . . . Total Damage . | . . . Kills . | . . . Allies Corrupted . | . . . Allies Melted . | . . . Intel | -11 -10 -10 ------- Run | Yrd Mat Sub Robot Analysis Total . | . . . Derelict Logs Recovered . | . . . Drone Launches . | . . . Drone Recoveries . | . . . Exploration | -11 -10 -10 ------------- Run | Yrd Mat Sub Turns Passed 1249 | 62 930 257 Spaces Moved 874 | 49 698 127 Core 7 | 6 . 1 Treads . | . . . Legs . | . . . Wheels 867 | 43 698 126 Hover . | . . . Flight . | . . . Fastest Speed 50 | 50 80 95 Average Speed 93 | 81 93 99 Slowest Speed 550 | 90 110 550 Overloaded Moves . | . . . Propulsion Burnouts . | . . . Robots Hopped . | . . . Cave-ins Triggered . | . . . Exploration Rate (%) 37 | 3 90 18 Regions Visited 2 Branch Regions 1 Pre-discovered Areas . | . . . Known Exits Taken . | . . . Unknown Exits Taken 2 | 1 1 . Scrap Searched . | . . . Spaces Dug . | . . . Terrain Destroyed . | . . . Melee . | . . . Projectile . | . . . AOE . | . . . Terrain Rammed . | . . . Walls Destroyed . | . . . Machines Disabled . | . . . Actions | -11 -10 -10 --------- Run | Yrd Mat Sub Total 1134 | 68 876 190 Wait 119 | . 99 20 Move 872 | 48 697 127 Hop . | . . . Pick Up 31 | 10 19 2 Fast Attach 1 | 1 . . Attach 13 | 7 2 4 Detach . | . . . Swap 6 | . 1 5 Drop 8 | 1 6 1 Fire 72 | 1 51 20 Melee 11 | . . 11 Ram 1 | . 1 . Kick . | . . . Crush . | . . . Escape Stasis . | . . . Rewire . | . . . Trap . | . . . Miscellaneous . | . . . Route ------- -11/Scrapyard -10/Materials (discovered 6 exits: [*Mat x3] / [*Min x2] / [*Sub]) -10/Subcaves History --------- Turn | Location | Event 19 | -11/Scrapyard | Discovered new exit (range 15) 63 | -11/Scrapyard | Entered Materials 133 | -10/Materials | Discovered new exit (range 14) 310 | -10/Materials | Build established: Mutant 339 | -10/Materials | Discovered new exit (range 15) 344 | -10/Materials | Discovered new exit (range 15) 569 | -10/Materials | Discovered new exit (range 9) 615 | -10/Materials | Discovered new exit (range 12) 987 | -10/Materials | Discovered new exit (range 7) 993 | -10/Materials | Entered Subcaves 1011 | -10/Subcaves | Core integrity fell below 50% 1208 | -10/Subcaves | Core integrity fell below 20% 1250 | -10/Subcaves | Destroyed by V6-9FU(R) with Subdweller Beam Cannon Last Messages --------------- 01165_ Heat Sink fries itself beyond repair. 01165_ Acquired Lgt. Armor Plating. 01171_ Heat Sink fries itself beyond repair. 01173_ Beam Rifle fries itself beyond repair. 01201_ Triggered Piercing Trap. 01201_ Spikes shoot up from the floor. 01201_ Critical hit (Impale). 01201_ Wheel destroyed. 01207_ Triggered Piercing Trap. 01207_ Spikes shoot up from the floor. 01207_ Critical hit (Impale). 01211_ Triggered Piercing Trap. 01211_ Spikes shoot up from the floor. 01211_ Critical hit (Impale). 01211_ Lgt. Ion Engine destroyed. 01213_ Triggered Piercing Trap. 01213_ Spikes shoot up from the floor. 01213_ Wheel destroyed. 01230_ Beam Cannon destroyed. 01248_ Ion Engine destroyed. Map ----- +----------------------------------------------------+ | ??? ???## ##??????????????????????????? | | ??? #???# #??????????????????????????? | | ??# ????# #??????????????????????????? | | ### ????# ##?????????????????????????? | | ?????# ##????????????????????????? | | ??#### #????????????????????????? | | # #?## ## #????????????????????????? | | ?# ### #### ##????????????????????????? | | ?# #??# ##????????????????????????? | | ?# #??# #????????????????????????? | | ## #### ##????????????????????????? | | # ## ##????????????????????????? | | #????????????????????????? | | #????????????????????????? | | ######???????????????????? | | ### ## # ###?????????????????? | | #?###### ##????????????????? | | ####??????# ## # #????????????????? | | ?????????# #### ### ##????????????????? | | ?????????## ##??##### #?????????????????? | | ??????????####??????# ^ #?????????????????? | | ????????????????????## ###???????????????? | | ?????????????????????## #;#???????????????? | | ??????????????????????# ^ #???????????????? | | ??????????????????????# #???????????????? | | ??????????????????????##^@ ##???????????????? | | ???????????????????????##R"#????????????????? | | ???????????????????????? ##????????????????? | | ???????????????????????? #?????????????????? | | ???????????????????????# #?????????????????? | | ???????????????????????# #?????????????????? | | ???????????????????????# ?????????????????? | | ???????????????????????# ?????????????????? | | ???????????????????????#" ?????????????????? | | ???????????????????????#"" ?????????????????? | | ??????????????????????? ""?????????????????? | | ???????????????????????? ?????????????????? | | ??????????????????????????"?????????????????? | | ????????????????????????????????????????????? | | ????????????????????????????????????????????? | | ????????????????????????????????????????????? | | ????????????????????????????????????????????? | | ????????????????????????????????????????????? | | ????????????????????????????????????????????? | | ????????????????????????????????????????????? | | ????????????????????????????????????????????? | | ????????????????????????????????????????????? | | ????????????????????????????????????????????? | | ????????????????????????????????????????????? | | ????????????????????????????????????????????? | +----------------------------------------------------+ Best States ------------- Heat Dissipation 25 Coolant Potential 50 Energy Generation 10 Energy Capacity 250 Matter Stores 300 Matter Capacity 300 Sight Range 16 Terrain Scan Density 10 Resistance: KI 20 Resistance: TH 20 Resistance: EX 20 Resistance: EM 20 Resistance: I 20 Resistance: S 20 Resistance: P 20 Evasion (%) 44 Offensive Hacking 10 Item Schematics ----------------- Lgt. Treads | -10/Materials | Hacked Lrg. Storage Unit | -10/Materials | Hacked Robot Schematics ------------------ None Fabricated ------------ Nothing Alien Tech Used ----------------- None Achievements -------------- None Challenges ------------ None Game ------ Seed PowerRainbowShredder Manual? 0 Play Time 00:16:15 Cumulative 48.2 hours Start 2024.04.19 @ 23:06:51 End 2024.04.19 @ 23:44:31 Sessions 1 Manual Loads 0 Difficulty Adventurer Special Mode None Game No. 24 Rogue 0 Adventurer 24 Explorer 0 Win Type - Total 2 Types 1/1/0/0/0/0/0/0/0 Lore% 35 Gallery% 49 Achievement% 43 Wizard Run 0 Options --------- Layout 0 ASCII 0 Keyboard 0 Movement Mouse Keybinds 0 Fullscreen 1 Font 18/SmallcapsGlow Map View 38x25 Zoom Use 100% Tactical HUD 1 Map Filters NONE Filters NONE Steam 1 RUN: 95a311cc-df64-419b-b27a-37f1ca8b6c33